Workbook

Sheet FRONT PAGE
X1: Choose your school
X2: Akiva | Y2: 3520
X3: All Saints' CE School (N20) | Y3: 3317
X4: All Saints' CE School (NW2) | Y4: 3300
X5: Annunciation RC Infant School | Y5: 3500
X6: Annunciation RC Junior School | Y6: 3514
D7: 2016-17 CFR RETURN | X7: Barnfield School | Y7: 2002
X8: Beis Yaakov | Y8: 2079
D9: Choose your school | F9: =VLOOKUP(D9,X:Y,2,0) -> 0 | X9: Beit Shvidler | Y9: 3524
X10: Bell Lane School | Y10: 2003
X11: Bishop Douglass RC High | Y11: 5408
X12: Blessed Dominic RC School | Y12: 3511
X13: Brookhill Nursery | Y13: 1000
X14: Brookland Infant School | Y14: 2008
X15: Brookland Junior School | Y15: 2007
X16: Brunswick Park School | Y16: 2009
X17: Chalgrove School | Y17: 2067
X18: Childs Hill School | Y18: 2010
X19: Christ Church CE School | Y19: 3302
X20: Church Hill School | Y20: 2011
D21: Deadline for return: Friday 9 June 2017 | X21: Claremont | Y21: 3522
X22: Colindale School | Y22: 2014
X23: Coppetts Wood School | Y23: 2015
X24: Courtland School | Y24: 2016
X25: Cromer Road School | Y25: 2017
X26: Danegrove School | Y26: 2073
X27: Deansbrook Infant School | Y27: 2019
X28: Dollis Infant School | Y28: 2021
D29: Contacts; | X29: Dollis Junior School | Y29: 5200
D30: Claudette James 0208 359 7132 | X30: Edgware Primary | Y30: 2023
D31: Nicole Gibson 0208 359 7223 Tues/Weds/Thurs | X31: Fairway School | Y31: 2024
D32: Gary Topp 0208 359 7227 | X32: Finchley Catholic High School | Y32: 5405
X33: Foulds School | Y33: 2025
X34: Friern Barnet School | Y34: 4003
X35: Frith Manor School | Y35: 2026
X36: Garden Suburb Infant School | Y36: 2028
X37: Garden Suburb Junior School | Y37: 2027
X38: Goldbeaters School | Y38: 2029
X39: Hampden Way Nursery | Y39: 1001
X40: Hasmonean Primary School | Y40: 3516
X41: Hollickwood School | Y41: 2031
X42: Holly Park School | Y42: 2032
X43: Holy Trinity CE School | Y43: 3304
X44: JCoSS | Y44: 5427
X45: Livingstone School | Y45: 2036
X46: Manorside School | Y46: 2037
X47: Mapledown School | Y47: 7010
X48: Martin Primary | Y48: 3523
X49: Mathilda Marks Kennedy School | Y49: 5948
X50: Menorah Foundation School | Y50: 5949
X51: Menorah High School for Girls | Y51: 4004
X52: Menorah Primary School | Y52: 3513
X53: Monken Hadley CE School | Y53: 3305
X54: Monkfrith School | Y54: 2042
X55: Moss Hall Infant School | Y55: 2044
X56: Moss Hall Junior School | Y56: 2043
X57: Moss Hall Nursery | Y57: 1002
X58: Northside School | Y58: 2045
X59: Northway School | Y59: 7005
X60: Oak Lodge School | Y60: 7000
X61: Oakleigh School | Y61: 7009
X62: Orion School | Y62: 2077
X63: Osidge School | Y63: 5201
X64: Our Lady of Lourdes RC School | Y64: 3501
X65: Pardes House School | Y65: 2078
X66: Queenswell Infant School | Y66: 2071
X67: Queenswell Junior School | Y67: 2072
X68: Rosh Pinah School | Y68: 3512
X69: Sacks Morasha | Y69: 2041
X70: Sacred Heart RC School | Y70: 3510
X71: St James' Catholic High School | Y71: 5407
X72: St Margaret's Nursery | Y72: 1003
X73: St Mary's CE High School | Y73: 5403
X74: St. Agnes' RC School | Y74: 3502
X75: St. Andrew's CE School | Y75: 3315
X76: St. Catherine's RC School | Y76: 3504
X77: St. John's CE School (N11) | Y77: 3307
X78: St. John's CE School (N20) | Y78: 3309
X79: St. Joseph's RC Primary School | Y79: 3509
X80: St. Mary's & St. Johns Primary | Y80: 3521
X81: St. Mary's CE School (EN4) | Y81: 3312
X82: St. Mary's CE School (N3) | Y82: 3311
X83: St. Michael's Catholic Grammar School | Y83: 5404
X84: St. Paul's CE School (N11) | Y84: 3313
X85: St. Paul's CE School (NW7) | Y85: 3314
X86: St. Theresa's RC School | Y86: 3507
X87: St. Vincent's RC School | Y87: 3506
X88: Summerside School | Y88: 2052
X89: Sunnyfields School | Y89: 2070
X90: Trent CE School | Y90: 3316
X91: Tudor School | Y91: 2055
X92: Underhill School | Y92: 2057
X93: Wessex Gardens School | Y93: 2076
X94: Whitings Hill School | Y94: 2060
X95: Woodcroft Primary | Y95: 3518
X96: Woodridge School | Y96: 2054
X97: Northgate | Y97: 1102
X98: The Pavilion | Y98: 1100
X102: =COUNTA(X2:X98) -> 97

Sheet CFR Return
B3: School DfE No. | C3: ='FRONT PAGE'!$F$9 -> 0 | E3: ='FRONT PAGE'!$F$9 -> 0
A6: CFR Return - Division of Total Revenue and Capital Balances as at 31 March 2017
B8: School | C8: Cost Centre
B9: =VLOOKUP($C$3,$A$72:$C$174,2,0) ->  | C9: =VLOOKUP($C$3,$A$72:$C$174,3,0) -> 
A11: CFR Heading | B11: Description | C11: Balance as at 31.03.17
C12: £
A13: B01 | B13: Committed Revenue Balance
A14: B02 | B14: Uncommitted Revenue Balance
A15: B06 | B15: Community Focussed Extended Schl Bal
B16: Total Revenue Balance | C16: =VLOOKUP($C$9,'Indschls 16-17'!$B$5:$O$116,3,0) -> 
A18: B03 | B18: Devolved Formula Capital Balance
A19: B05 | B19: Other Capital Balances
B21: Total Capital Balance | C21: =VLOOKUP($C$9,'Indschls 16-17'!$B$5:$O$116,8,0) -> 
A24: Please enter figures to show the breakdown of your total revenue and total
A25: capital balance as at 31 March 2017
A28: B01 | B28: Committed Revenue Balances - This includes:
B29: Committed cumulative balance of income, less expenditure from revenue funding sources during the financial year and any committed revenue balances from previous years - this includes revenue funding received during previous financial years from specific grants
B30: Any unspent voluntary income
B31: Any unspent and committed pupil-focused extended school funding and/or grants
B32: Unspent amount of current financial year's Pupil Premium grant
A33: B02 | B33: Uncommitted Revenue Balance - Any revenue balances including
B34: the previous years not committed - Not including any balances from
B35: B01 or B06
A36: B06 | B36: Community Focussed Sch Balance - Any unspent
B37: community focussed school balances (I16 & I17 less E31 &
B38: E32)
A39: B03 | B39: Devolved Formula Capital Balance - Any Devolved
B40: Formula Capital funding not spent
A41: B05 | B41: Other Capital Balances - Other Capital balances not yet spent
B42: can include unspent Direct Revenue Finance or Private capital Income
A45: I certify that the above figures give a fair indication as to the division of our Total
A46: Revenue and Total Capital Balances as at 31 March 2017
A49: Prepared by | B49: _______________________________________
A50: Date | B50: _______________________________________
A51: Signed by Head Teacher | B51: _______________________________________
A52: Date | B52: _______________________________________
A57: Please return this form to Claudette James, Schools Accountancy Section, Building 4 North London Business Park, London N11 1NP - by Friday 9th June
B60: Contacts;
B61: Claudette James 0208 359 7132
B62: Nicole Gibson 0208 359 7223
B63: Gary Topp 0208 359 7227
A72: 1000 | B72: Brookhill Nursery | C72: 10130
A73: 1001 | B73: Hampden Way Nursery | C73: 10131
A74: 1002 | B74: Moss Hall Nursery | C74: 10132
A75: 1003 | B75: St Margaret's Nursery | C75: 10133
A76: 2000 | B76: Parkfield School | C76: 10120
A77: 2002 | B77: Barnfield School | C77: 10044
A78: 2003 | B78: Bell Lane School | C78: 10045
A79: 2007 | B79: Brookland Junior School | C79: 10046
A80: 2008 | B80: Brookland Infant School | C80: 10047
A81: 2009 | B81: Brunswick Park School | C81: 10048
A82: 2010 | B82: Childs Hill School | C82: 10049
A83: 2011 | B83: Church Hill School | C83: 10051
A84: 2014 | B84: Colindale School | C84: 10054
A85: 2015 | B85: Coppetts Wood School | C85: 10055
A86: 2016 | B86: Courtland School | C86: 10056
A87: 2017 | B87: Cromer Road School | C87: 10057
A88: 2018 | B88: Deansbrook Junior School | C88: 10058
A89: 2019 | B89: Deansbrook Infant School | C89: 10059
A90: 2021 | B90: Dollis Infant School | C90: 10061
A91: 2022 | B91: Edgware Junior School | C91: 10062
A92: 2023 | B92: Edgware Infant School | C92: 10063
A93: 2024 | B93: Fairway School | C93: 10064
A94: 2025 | B94: Foulds School | C94: 10065
A95: 2026 | B95: Frith Manor School | C95: 10066
A96: 2027 | B96: Garden Suburb Junior School | C96: 10067
A97: 2028 | B97: Garden Suburb Infant School | C97: 10068
A98: 2029 | B98: Goldbeaters School | C98: 10069
A99: 2031 | B99: Hollickwood School | C99: 10071
A100: 2032 | B100: Holly Park School | C100: 10072
A101: 2036 | B101: Livingstone School | C101: 10074
A102: 2037 | B102: Manorside School | C102: 10075
A103: 2042 | B103: Monkfrith School | C103: 10079
A104: 2043 | B104: Moss Hall Junior School | C104: 10080
A105: 2044 | B105: Moss Hall Infant School | C105: 10081
A106: 2045 | B106: Northside School | C106: 10082
A107: 2052 | B107: Summerside School | C107: 10098
A108: 2054 | B108: Woodridge School | C108: 10109
A109: 2055 | B109: Tudor School | C109: 10101
A110: 2056 | B110: Underhill Junior School | C110: 10102
A111: 2057 | B111: Underhill Infant School | C111: 10103
A112: 2060 | B112: Whitings Hill School | C112: 10105
A113: 2067 | B113: Chalgrove School | C113: 10118
A114: 2070 | B114: Sunnyfields School | C114: 10097
A115: 2071 | B115: Queenswell Infant School | C115: 10119
A116: 2072 | B116: Queenswell Junior School | C116: 10086
A117: 2073 | B117: Danegrove School | C117: 10083
A118: 2074 | B118: Hyde School | C118: 10122
A119: 2076 | B119: Wessex Gardens School | C119: 10124
A120: 2077 | B120: Orion School | C120: 10127
A121: 2078 | B121: Pardes House School | C121: 10129
A122: 2079 | B122: Beis Yaakov | C122: 10128
A123: 3300 | B123: All Saints' CE School (NW2) | C123: 10040
A124: 3302 | B124: Christ Church CE School | C124: 10050
A125: 3304 | B125: Holy Trinity CE School | C125: 10073
A126: 3305 | B126: Monken Hadley CE School | C126: 10078
A127: 3307 | B127: St. John's CE School (N11) | C127: 10089
A128: 3309 | B128: St. John's CE School (N20) | C128: 10116
A129: 3311 | B129: St. Mary's CE School (N3) | C129: 10092
A130: 3312 | B130: St. Mary's CE School (EN4) | C130: 10093
A131: 3313 | B131: St. Paul's CE School (N11) | C131: 10094
A132: 3314 | B132: St. Paul's CE School (NW7) | C132: 10095
A133: 3315 | B133: St. Andrew's CE School | C133: 10099
A134: 3316 | B134: Trent CE School | C134: 10100
A135: 3317 | B135: All Saints' CE School (N20) | C135: 10042
A136: 3500 | B136: Annunciation RC Infant School | C136: 10043
A137: 3501 | B137: Our Lady of Lourdes RC School | C137: 10085
A138: 3502 | B138: St. Agnes' RC School | C138: 10087
A139: 3504 | B139: St. Catherine's RC School | C139: 10088
A140: 3506 | B140: St. Vincent's RC School | C140: 10096
A141: 3507 | B141: St. Theresa's RC School | C141: 10108
A142: 3508 | B142: St. Joseph's RC Infant School | C142: 10111
A143: 3509 | B143: St. Joseph's RC Junior School | C143: 10107
A144: 3510 | B144: Sacred Heart RC School | C144: 10110
A145: 3511 | B145: Blessed Dominic RC School | C145: 10115
A146: 3512 | B146: Rosh Pinah School | C146: 10112
A147: 3513 | B147: Menorah Primary School | C147: 10114
A148: 3514 | B148: Annunciation RC Junior School | C148: 10117
A149: 3516 | B149: Hasmonean Primary School | C149: 10121
A150: 3518 | B150: Woodcroft Primary | C150: 10123
A151: 3519 | B151: Broadfields Primary | C151: 10134
A152: 3520 | B152: Akiva | C152: 11094
A153: 3521 | B153: St. Mary's & St. Johns Primary | C153: 10698
A154: 3522 | B154: Claremont Primary | C154: 10953
A155: 3523 | B155: Martin Primary | C155: 11093
A156: 3524 | B156: Beit Shvidler | C156: 11278
A157: 4003 | B157: Friern Barnet School | C157: 10139
A158: 4004 | B158: Menorah High School for Girls | C158: 11513
A159: 5200 | B159: Dollis Junior School | C159: 10060
A160: 5201 | B160: Osidge School | C160: 10084
A161: 5403 | B161: St Mary's CE High School | C161: 10143
A162: 5404 | B162: St. Michael's Catholic Grammar School | C162: 10148
A163: 5405 | B163: Finchley Catholic High School | C163: 10145
A164: 5407 | B164: St James' Catholic High School | C164: 10142
A165: 5408 | B165: Bishop Douglass RC High | C165: 10137
A166: 5427 | B166: JCoSS | C166: 11174
A167: 5948 | B167: Mathilda Marks Kennedy School | C167: 10125
A168: 5949 | B168: Menorah Foundation School | C168: 10126
A169: 7000 | B169: Oak Lodge School | C169: 10156
A170: 7005 | B170: Northway School | C170: 10157
A171: 7009 | B171: Oakleigh School | C171: 10158
A172: 7010 | B172: Mapledown School | C172: 10159
A173: 1102 | B173: Northgate | C173: 10185
A174: 1100 | B174: The Pavilion | C174: 10188

Sheet Indschls 16-17
C1: Final Individual School Outturn Balances 2016-17
B2: 1 | C2: 2 | D2: 3 | E2: 4 | F2: 5 | G2: 6 | H2: 7 | I2: 8 | J2: 9 | K2: 10 | L2: 11 | M2: 12 | N2: 13 | O2: 14
D3: Revenue | I3: Capital | M3: Total Balance
C4: School | D4: As at 31.03.17 | E4: Balance as % Final Budget Share 14-15 | F4: As at 31.03.16 | G4: Increase / (decrease) | I4: =D4 -> As at 31.03.17 | J4: =F4 -> As at 31.03.16 | K4: Increase / (decrease) | M4: =D4 -> As at 31.03.17 | N4: =F4 -> As at 31.03.16 | O4: Increase / (decrease)
A5: 1000 | B5: 10130 | C5: Brookhill | D5: 158461.67 | E5: 0 | F5: 145359 | G5: 13102.67 | I5: 1.25 | J5: 1 | K5: 0.25 | M5: 158462.92 | N5: 145360 | O5: 13102.92
A6: 1001 | B6: 10131 | C6: Hampden Way | D6: 125592.15 | E6: 0 | F6: 192316 | G6: -66723.85 | I6: 8014.7 | J6: 11251 | K6: -3236.3 | M6: 133606.85 | N6: 203567 | O6: -69960.15
A7: 1002 | B7: 10132 | C7: Moss Hall | D7: 302766.64 | E7: 0 | F7: 275577 | G7: 27189.64 | I7: 10046 | J7: 9914 | K7: 132 | M7: 312812.64 | N7: 285491 | O7: 27321.64
A8: 1003 | B8: 10133 | C8: St Margarets | D8: 29080.69 | E8: 0 | F8: 131617 | G8: -102536.31 | I8: 1054.85 | J8: 6125 | K8: -5070.15 | M8: 30135.54 | N8: 137742 | O8: -107606.46
C10: Sub Total - Nursery Sector | D10: =SUM(D5:D8) -> 615901.15 | E10: =SUM(E5:E8) -> 0 | F10: =SUM(F5:F8) -> 744869 | G10: =SUM(G5:G8) -> -128967.85 | I10: =SUM(I5:I8) -> 19116.8 | J10: 27291 | K10: -8174.2 | L10: 0 | M10: 635017.95 | N10: 772160 | O10: -137142.05
A12: 3520 | B12: 11094 | C12: Akiva | D12: -34411.53 | E12: 0 | F12: 9539 | G12: -43950.53 | I12: 9.313225746e-12 | J12: -43244 | K12: 43244 | M12: -34411.53 | N12: -33705 | O12: -706.53
A13: 3317 | B13: 10042 | C13: All Saints' CE School (N20) | D13: 151873.35 | E13: 0 | F13: 135381 | G13: 16492.35 | I13: 0 | J13: 0 | K13: 0 | M13: 151873.35 | N13: 135381 | O13: 16492.35
A14: 3300 | B14: 10040 | C14: All Saints' CE School (NW2) | D14: 205150.3 | E14: 0 | F14: 152778 | G14: 52372.3 | I14: 0 | J14: 0 | K14: 0 | M14: 205150.3 | N14: 152778 | O14: 52372.3
A15: 3500 | B15: 10043 | C15: Annunciation RC Infant School | D15: 122676.4 | E15: 0 | F15: 126014 | G15: -3337.6 | I15: 0 | J15: 0 | K15: 0 | M15: 122676.4 | N15: 126014 | O15: -3337.6
A16: 3514 | B16: 10117 | C16: Annunciation RC Junior School | D16: 60712.28 | E16: 0 | F16: 29980 | G16: 30732.28 | I16: 0 | J16: 0 | K16: 0 | M16: 60712.28 | N16: 29980 | O16: 30732.28
A17: 2002 | B17: 10044 | C17: Barnfield School | D17: 375651.24 | E17: 0 | F17: 387326 | G17: -11674.76 | I17: -1.07 | J17: -1 | K17: -0.07 | M17: 375650.17 | N17: 387325 | O17: -11674.83
A18: 2079 | B18: 10128 | C18: Beis Yaakov | D18: 15010.96 | E18: 0 | F18: -84532 | G18: 99542.96 | I18: 0 | J18: 0 | K18: 0 | M18: 15010.96 | N18: -84532 | O18: 99542.96
A19: 3524 | B19: 11278 | C19: Beit Shvidler Jewish Primary | D19: 58611.57 | E19: 0 | F19: 100592 | G19: -41980.43 | I19: 0 | J19: 0 | K19: 0 | M19: 58611.57 | N19: 100592 | O19: -41980.43
A20: 2003 | B20: 10045 | C20: Bell Lane School | D20: 80741.78 | E20: 0 | F20: 73706 | G20: 7035.78 | I20: 8826.48 | J20: 0 | K20: 8826.48 | M20: 89568.26 | N20: 73706 | O20: 15862.26
A21: 3511 | B21: 10115 | C21: Blessed Dominic RC School | D21: 74706.87 | E21: 0 | F21: 106981 | G21: -32274.13 | I21: 1 | J21: 1 | K21: 0 | M21: 74707.87 | N21: 106982 | O21: -32274.13
A22: 2008 | B22: 10047 | C22: Brookland Infant School | D22: 49818.02 | E22: 0 | F22: 26946 | G22: 22872.02 | I22: 1423.94 | J22: 14434 | K22: -13010.06 | M22: 51241.96 | N22: 41380 | O22: 9861.96
A23: 2007 | B23: 10046 | C23: Brookland Junior School | D23: 181476.19 | E23: 0 | F23: 133651 | G23: 47825.19 | I23: 912 | J23: 0 | K23: 912 | M23: 182388.19 | N23: 133651 | O23: 48737.19
A24: 2009 | B24: 10048 | C24: Brunswick Park School | D24: 119745.33 | E24: 0 | F24: 144529 | G24: -24783.67 | I24: 0 | J24: 2455 | K24: -2455 | M24: 119745.33 | N24: 146984 | O24: -27238.67
A25: 2067 | B25: 10118 | C25: Chalgrove School | D25: 126744.1 | E25: 0 | F25: 84969 | G25: 41775.1 | I25: -1.5 | J25: 3855 | K25: -3856.5 | M25: 126742.6 | N25: 88824 | O25: 37918.6
A26: 2010 | B26: 10049 | C26: Childs Hill School | D26: 39642.4 | E26: 0 | F26: 117316 | G26: -77673.6 | I26: 0 | J26: -299 | K26: 299 | M26: 39642.4 | N26: 117017 | O26: -77374.6
A27: 3302 | B27: 10050 | C27: Christ Church CE School | D27: 175744.1 | E27: 0 | F27: 71319 | G27: 104425.1 | I27: 0 | J27: 0 | K27: 0 | M27: 175744.1 | N27: 71319 | O27: 104425.1
A28: 2011 | B28: 10051 | C28: Church Hill School | D28: 89142.43 | E28: 0 | F28: 34425 | G28: 54717.43 | I28: 161.5 | J28: 4604 | K28: -4442.5 | M28: 89303.93 | N28: 39029 | O28: 50274.93
A29: 3522 | B29: 10953 | C29: Claremont Primary | D29: 0 | E29: 0 | F29: 250778 | G29: -250778 | I29: 0 | J29: -69013 | K29: 69013 | M29: 0 | N29: 181765 | O29: -181765
A30: 2014 | B30: 10054 | C30: Colindale School | D30: 691029.48 | E30: 0 | F30: 666977 | G30: 24052.48 | I30: 0 | J30: 0 | K30: 0 | M30: 691029.48 | N30: 666977 | O30: 24052.48
A31: 2015 | B31: 10055 | C31: Coppetts Wood School | D31: 416463.8 | E31: 0 | F31: 349579 | G31: 66884.8 | I31: 7066.75 | J31: 0 | K31: 7066.75 | M31: 423530.55 | N31: 349579 | O31: 73951.55
A32: 2016 | B32: 10056 | C32: Courtland School | D32: 12493.33 | E32: 0 | F32: 17215 | G32: -4721.67 | I32: 11092.19 | J32: 8226 | K32: 2866.19 | M32: 23585.52 | N32: 25441 | O32: -1855.48
A33: 2017 | B33: 10057 | C33: Cromer Road School | D33: 137978.37 | E33: 0 | F33: 193508 | G33: -55529.63 | I33: 14715.2 | J33: 9203 | K33: 5512.2 | M33: 152693.57 | N33: 202711 | O33: -50017.43
A34: 2073 | B34: 10083 | C34: Danegrove School | D34: 461078.79 | E34: 0 | F34: 437563 | G34: 23515.79 | I34: -0.25 | J34: 6619 | K34: -6619.25 | M34: 461078.54 | N34: 444182 | O34: 16896.54
A35: 2019 | B35: 10059 | C35: Deansbrook Infant School | D35: 36222.56 | E35: 0 | F35: 76196 | G35: -39973.44 | I35: 15618.25 | J35: 7836 | K35: 7782.25 | M35: 51840.81 | N35: 84032 | O35: -32191.19
A36: 2021 | B36: 10061 | C36: Dollis Infant School | D36: 84238.55 | E36: 0 | F36: 40780 | G36: 43458.55 | I36: 16523.97 | J36: 1 | K36: 16522.97 | M36: 100762.52 | N36: 40781 | O36: 59981.52
A37: 5200 | B37: 10060 | C37: Dollis Junior School | D37: 32911.35 | E37: 0 | F37: 43160 | G37: -10248.65 | I37: 5264 | J37: -1 | K37: 5265 | M37: 38175.35 | N37: 43159 | O37: -4983.65
A38: 2023 | B38: 10063 | C38: Edgware Primary | D38: 16604.28 | E38: 0 | F38: 64214 | G38: -47609.72 | I38: 641.6 | J38: 2173 | K38: -1531.4 | M38: 17245.88 | N38: 66387 | O38: -49141.12
A39: 2024 | B39: 10064 | C39: Fairway School | D39: 170460.72 | E39: 0 | F39: 127647 | G39: 42813.72 | I39: 39959.07 | J39: 37670 | K39: 2289.07 | M39: 210419.79 | N39: 165317 | O39: 45102.79
A40: 2025 | B40: 10065 | C40: Foulds School | D40: 96651.58 | E40: 0 | F40: 61881 | G40: 34770.58 | I40: 9042.85 | J40: 9350 | K40: -307.15 | M40: 105694.43 | N40: 71231 | O40: 34463.43
A41: 2026 | B41: 10066 | C41: Frith Manor School | D41: 1968.95 | E41: 0 | F41: 53961 | G41: -51992.05 | I41: 10303.18 | J41: 14262 | K41: -3958.82 | M41: 12272.13 | N41: 68223 | O41: -55950.87
A42: 2028 | B42: 10068 | C42: Garden Suburb Infant School | D42: 54373.43 | E42: 0 | F42: 71415 | G42: -17041.57 | I42: 11223 | J42: 4298 | K42: 6925 | M42: 65596.43 | N42: 75713 | O42: -10116.57
A43: 2027 | B43: 10067 | C43: Garden Suburb Junior School | D43: 105199.21 | E43: 0 | F43: 80447 | G43: 24752.21 | I43: 3259.23 | J43: 2055 | K43: 1204.23 | M43: 108458.44 | N43: 82502 | O43: 25956.44
A44: 2029 | B44: 10069 | C44: Goldbeaters School | D44: -10195.16 | E44: 0 | F44: 44470 | G44: -54665.16 | I44: 8969.25 | J44: -1 | K44: 8970.25 | M44: -1225.91 | N44: 44469 | O44: -45694.91
A45: 3516 | B45: 10121 | C45: Hasmonean Primary School | D45: -1986.03 | E45: 0 | F45: -63009 | G45: 61022.97 | I45: 0 | J45: 0 | K45: 0 | M45: -1986.03 | N45: -63009 | O45: 61022.97
A46: 2031 | B46: 10071 | C46: Hollickwood School | D46: 156272.67 | E46: 0 | F46: 72869 | G46: 83403.67 | I46: 7817.05 | J46: 1203 | K46: 6614.05 | M46: 164089.72 | N46: 74072 | O46: 90017.72
A47: 2032 | B47: 10072 | C47: Holly Park School | D47: 74560.37 | E47: 0 | F47: 20887 | G47: 53673.37 | I47: -0.5 | J47: 9 | K47: -9.5 | M47: 74559.87 | N47: 20896 | O47: 53663.87
A48: 3304 | B48: 10073 | C48: Holy Trinity CE School | D48: 126491.16 | E48: 0 | F48: 34290 | G48: 92201.16 | I48: -1 | J48: -1 | K48: 0 | M48: 126490.16 | N48: 34289 | O48: 92201.16
A49: 2036 | B49: 10074 | C49: Livingstone School | D49: 452448.91 | E49: 0 | F49: 393161 | G49: 59287.91 | I49: 0 | J49: 32 | K49: -32 | M49: 452448.91 | N49: 393193 | O49: 59255.91
A50: 2037 | B50: 10075 | C50: Manorside School | D50: 13575.99 | E50: 0 | F50: -16299 | G50: 29874.99 | I50: 7717 | J50: 333 | K50: 7384 | M50: 21292.99 | N50: -15966 | O50: 37258.99
A51: 3523 | B51: 11093 | C51: Martin Primary | D51: 178533.05 | E51: 0 | F51: 134766 | G51: 43767.05 | I51: 4214.38 | J51: 0 | K51: 4214.38 | M51: 182747.43 | N51: 134766 | O51: 47981.43
A52: 5948 | B52: 10125 | C52: Mathilda Marks Kennedy School | D52: 24291.07 | E52: 0 | F52: 16469 | G52: 7822.07 | I52: 0 | J52: 0 | K52: 0 | M52: 24291.07 | N52: 16469 | O52: 7822.07
A53: 5949 | B53: 10126 | C53: Menorah Foundation School | D53: 64642.85 | E53: 0 | F53: 23476 | G53: 41166.85 | I53: 0 | J53: 0 | K53: 0 | M53: 64642.85 | N53: 23476 | O53: 41166.85
A54: 3513 | B54: 10114 | C54: Menorah Primary School | D54: -1759.57 | E54: 0 | F54: -25388 | G54: 23628.43 | I54: 0.4 | J54: 0 | K54: 0.4 | M54: -1759.17 | N54: -25388 | O54: 23628.83
A55: 3305 | B55: 10078 | C55: Monken Hadley CE School | D55: 163465.47 | E55: 0 | F55: 63203 | G55: 100262.47 | I55: 0 | J55: 0 | K55: 0 | M55: 163465.47 | N55: 63203 | O55: 100262.47
A56: 2042 | B56: 10079 | C56: Monkfrith School | D56: 122305.27 | E56: 0 | F56: 111743 | G56: 10562.27 | I56: 0.44 | J56: 6779 | K56: -6778.56 | M56: 122305.71 | N56: 118522 | O56: 3783.71
A57: 2044 | B57: 10081 | C57: Moss Hall Infant School | D57: 72560.58 | E57: 0 | F57: 105846 | G57: -33285.42 | I57: 0.25 | J57: 0 | K57: 0.25 | M57: 72560.83 | N57: 105846 | O57: -33285.17
A58: 2043 | B58: 10080 | C58: Moss Hall Junior School | D58: 208724.8 | E58: 0 | F58: 191665 | G58: 17059.8 | I58: 8331.25 | J58: 0 | K58: 8331.25 | M58: 217056.05 | N58: 191665 | O58: 25391.05
A59: 2045 | B59: 10082 | C59: Northside School | D59: 399998.71 | E59: 0 | F59: 442174 | G59: -42175.29 | I59: 13508.96 | J59: 19142 | K59: -5633.04 | M59: 413507.67 | N59: 461316 | O59: -47808.33
A60: 2077 | B60: 10127 | C60: Orion School | D60: 120926.72 | E60: 0 | F60: 143585 | G60: -22658.28 | I60: -14020.25 | J60: -20292 | K60: 6271.75 | M60: 106906.47 | N60: 123293 | O60: -16386.53
A61: 5201 | B61: 10084 | C61: Osidge School | D61: 188193.18 | E61: 0 | F61: 180845 | G61: 7348.18 | I61: 0.25 | J61: 0 | K61: 0.25 | M61: 188193.43 | N61: 180845 | O61: 7348.43
A62: 3501 | B62: 10085 | C62: Our Lady of Lourdes RC School | D62: 61777.65 | E62: 0 | F62: 72948 | G62: -11170.35 | I62: 1 | J62: 1 | K62: 0 | M62: 61778.65 | N62: 72949 | O62: -11170.35
A63: 2078 | B63: 10129 | C63: Pardes House School | D63: 51517.46 | E63: 0 | F63: -51622 | G63: 103139.46 | I63: 0 | J63: 0 | K63: 0 | M63: 51517.46 | N63: -51622 | O63: 103139.46
A64: 2071 | B64: 10119 | C64: Queenswell Infant School | D64: 18395.93 | E64: 0 | F64: 92195 | G64: -73799.07 | I64: 7691 | J64: 0 | K64: 7691 | M64: 26086.93 | N64: 92195 | O64: -66108.07
A65: 2072 | B65: 10086 | C65: Queenswell Junior School | D65: 66539 | E65: 0 | F65: 73146 | G65: -6607 | I65: 1872.28 | J65: -1 | K65: 1873.28 | M65: 68411.28 | N65: 73145 | O65: -4733.72
A66: 3512 | B66: 10112 | C66: Rosh Pinah School | D66: 32369.78 | E66: 0 | F66: -8597 | G66: 40966.78 | I66: 0 | J66: 0 | K66: 0 | M66: 32369.78 | N66: -8597 | O66: 40966.78
A67: 3510 | B67: 10110 | C67: Sacred Heart RC School | D67: 144436.76 | E67: 0 | F67: 143552 | G67: 884.76 | I67: 0 | J67: 0 | K67: 0 | M67: 144436.76 | N67: 143552 | O67: 884.76
A68: 2041 | B68: 11381 | C68: Sacks Morasha | D68: 64165.84 | E68: 0 | F68: 79532 | G68: -15366.16 | I68: 1 | J68: 1 | K68: 0 | M68: 64166.84 | N68: 79533 | O68: -15366.16
A69: 3502 | B69: 10087 | C69: St. Agnes' RC School | D69: 300440.3 | E69: 0 | F69: 265780 | G69: 34660.3 | I69: 1 | J69: 1 | K69: 0 | M69: 300441.3 | N69: 265781 | O69: 34660.3
A70: 3315 | B70: 10099 | C70: St. Andrew's CE School | D70: 172133.77 | E70: 0 | F70: 171915 | G70: 218.77 | I70: 0 | J70: 0 | K70: 0 | M70: 172133.77 | N70: 171915 | O70: 218.77
A71: 3504 | B71: 10088 | C71: St. Catherine's RC School | D71: 231122.71 | E71: 0 | F71: 158282 | G71: 72840.71 | I71: 0 | J71: 0 | K71: 0 | M71: 231122.71 | N71: 158282 | O71: 72840.71
A72: 3307 | B72: 10089 | C72: St. John's CE School (N11) | D72: 49400.71 | E72: 0 | F72: 108062 | G72: -58661.29 | I72: 0 | J72: 0 | K72: 0 | M72: 49400.71 | N72: 108062 | O72: -58661.29
A73: 3309 | B73: 10116 | C73: St. John's CE School (N20) | D73: 27280.65 | E73: 0 | F73: 29886 | G73: -2605.35 | I73: 0 | J73: 0 | K73: 0 | M73: 27280.65 | N73: 29886 | O73: -2605.35
A74: 3509 | B74: 10107 | C74: St. Joseph's RC Primary | D74: -101168.42 | E74: 0 | F74: 16860 | G74: -118028.42 | I74: 0 | J74: 0 | K74: 0 | M74: -101168.42 | N74: 16860 | O74: -118028.42
A75: 3521 | B75: 10698 | C75: St. Mary's & St. Johns Primary | D75: 370562.22 | E75: 0 | F75: 177419 | G75: 193143.22 | I75: 2371.77 | J75: 20238 | K75: -17866.23 | M75: 372933.99 | N75: 197657 | O75: 175276.99
A76: 3312 | B76: 10093 | C76: St. Mary's CE School (EN4) | D76: 62592.8 | E76: 0 | F76: 33828 | G76: 28764.8 | I76: 0 | J76: 0 | K76: 0 | M76: 62592.8 | N76: 33828 | O76: 28764.8
A77: 3311 | B77: 10092 | C77: St. Mary's CE School (N3) | D77: 78078.32 | E77: 0 | F77: 100768 | G77: -22689.68 | I77: 0 | J77: 0 | K77: 0 | M77: 78078.32 | N77: 100768 | O77: -22689.68
A78: 3313 | B78: 10094 | C78: St. Paul's CE School (N11) | D78: 253746.14 | E78: 0 | F78: 253157 | G78: 589.14 | I78: 0 | J78: 0 | K78: 0 | M78: 253746.14 | N78: 253157 | O78: 589.14
A79: 3314 | B79: 10095 | C79: St. Paul's CE School (NW7) | D79: 23741.94 | E79: 0 | F79: 46511 | G79: -22769.06 | I79: 0 | J79: 0 | K79: 0 | M79: 23741.94 | N79: 46511 | O79: -22769.06
A80: 3507 | B80: 10108 | C80: St. Theresa's RC School | D80: 23559.1 | E80: 0 | F80: 19330 | G80: 4229.1 | I80: 0 | J80: 0 | K80: 0 | M80: 23559.1 | N80: 19330 | O80: 4229.1
A81: 3506 | B81: 10096 | C81: St. Vincent's RC School | D81: 115609.13 | E81: 0 | F81: 132717 | G81: -17107.87 | I81: -1 | J81: -1 | K81: -2.328359727e-12 | M81: 115608.13 | N81: 132716 | O81: -17107.87
A82: 2052 | B82: 10098 | C82: Summerside School | D82: 100079.32 | E82: 0 | F82: 45582 | G82: 54497.32 | I82: 2374.24 | J82: 0 | K82: 2374.24 | M82: 102453.56 | N82: 45582 | O82: 56871.56
A83: 2070 | B83: 10097 | C83: Sunnyfields School | D83: 143408.13 | E83: 0 | F83: 95344 | G83: 48064.13 | I83: 6674 | J83: 1 | K83: 6673 | M83: 150082.13 | N83: 95345 | O83: 54737.13
A84: 3316 | B84: 10100 | C84: Trent CE School | D84: 13208.27 | E84: 0 | F84: 16258 | G84: -3049.73 | I84: 0 | J84: 0 | K84: 0 | M84: 13208.27 | N84: 16258 | O84: -3049.73
A85: 2055 | B85: 10101 | C85: Tudor School | D85: -48708.08 | E85: 0 | F85: 20564 | G85: -69272.08 | I85: 1483.29 | J85: 6544 | K85: -5060.71 | M85: -47224.79 | N85: 27108 | O85: -74332.79
A86: 2057 | B86: 10103 | C86: Underhill School | D86: 184595.15 | E86: 0 | F86: 157517 | G86: 27078.15 | I86: 0.34 | J86: 0 | K86: 0.34 | M86: 184595.49 | N86: 157517 | O86: 27078.49
A87: 2076 | B87: 10124 | C87: Wessex Gardens School | D87: 192232.31 | E87: 0 | F87: 365842 | G87: -173609.69 | I87: 16066 | J87: 45921 | K87: -29855 | M87: 208298.31 | N87: 411763 | O87: -203464.69
A88: 2060 | B88: 10105 | C88: Whitings Hill School | D88: 141636.05 | E88: 0 | F88: 233083 | G88: -91446.95 | I88: -1669.75 | J88: -15094 | K88: 13424.25 | M88: 139966.3 | N88: 217989 | O88: -78022.7
A89: 3518 | B89: 10123 | C89: Woodcroft Primary | D89: 97408.86 | E89: 0 | F89: 129979 | G89: -32570.14 | I89: 2919.21 | J89: 9110 | K89: -6190.79 | M89: 100328.07 | N89: 139089 | O89: -38760.93
A90: 2054 | B90: 10109 | C90: Woodridge School | D90: 70041.06 | E90: 0 | F90: 119899 | G90: -49857.94 | I90: 4757.5 | J90: 13390 | K90: -8632.5 | M90: 74798.56 | N90: 133289 | O90: -58490.44
C92: Sub Total - Primary Sector | D92: =SUM(D12:D90) -> 9503963.09 | E92: =SUM(E12:E90) -> 0 | F92: =SUM(F12:F90) -> 9160731 | G92: =SUM(G12:G90) -> 343232.09 | I92: =SUM(I12:I90) -> 237110.75 | J92: =SUM(J12:J90) -> 101799 | K92: =SUM(K12:K90) -> 135311.75 | M92: =D92+I92 -> 9741073.84 | N92: =F92+J92 -> 9262530 | O92: =M92-N92 -> 478543.84
A94: 5408 | B94: 10137 | C94: Bishop Douglass RC High | D94: -0.1 | E94: 0 | F94: 83487 | G94: -83487.1 | I94: 0 | J94: 0 | K94: 0 | M94: -0.1 | N94: 83487 | O94: -83487.1
A95: 5405 | B95: 10145 | C95: Finchley Catholic High School | D95: 514620.15 | E95: 0 | F95: 517084 | G95: -2463.85 | I95: 0.82 | J95: 0 | K95: 0.82 | M95: 514620.97 | N95: 517084 | O95: -2463.03
A96: 4003 | B96: 10139 | C96: Friern Barnet School | D96: 220868.72 | E96: 0 | F96: 300510 | G96: -79641.28 | I96: 29130.79 | J96: 9491 | K96: 19639.79 | M96: 249999.51 | N96: 310001 | O96: -60001.49
A97: 5427 | B97: 11174 | C97: JCoSS | D97: -1427.17 | E97: 0 | F97: 123972 | G97: -125399.17 | I97: 0 | J97: 0 | K97: 0 | M97: -1427.17 | N97: 123972 | O97: -125399.17
B98: 11513 | C98: Menorah High | D98: 30055.44 | F98: 0 | G98: 30055.44 | I98: 0 | J98: 0 | K98: 0 | M98: 30055.44 | N98: 0 | O98: 30055.44
A99: 5407 | B99: 10142 | C99: St James' Catholic High School | D99: 124247.52 | E99: 0 | F99: 108187 | G99: 16060.52 | I99: 0 | J99: 0 | K99: 0 | M99: 124247.52 | N99: 108187 | O99: 16060.52
A100: 5403 | B100: 10143 | C100: St Mary's CE High | D100: 6181.68 | E100: 0 | F100: 225826 | G100: -219644.32 | I100: 0 | J100: 0 | K100: 0 | M100: 6181.68 | N100: 225826 | O100: -219644.32
A101: 5404 | B101: 10148 | C101: St. Michael's Catholic Gram'r Sch. | D101: -98516.75 | E101: 0 | F101: 11789 | G101: -110305.75 | I101: 4443 | J101: 4443 | K101: 0 | M101: -94073.75 | N101: 16232 | O101: -110305.75
C103: Sub Total - Secondary Sector | D103: =SUM(D94:D102) -> 796029.49 | E103: =SUM(E94:E102) -> 0 | F103: =SUM(F94:F102) -> 1370855 | G103: =SUM(G94:G102) -> -574825.51 | I103: =SUM(I94:I102) -> 33574.61 | J103: =SUM(J94:J102) -> 13934 | K103: =SUM(K94:K102) -> 19640.61 | M103: =D103+I103 -> 829604.1 | N103: =F103+J103 -> 1384789 | O103: =M103-N103 -> -555184.9
A105: 7010 | B105: 10159 | C105: Mapledown School | D105: 77439.45 | E105: 0 | F105: 118167 | G105: -40727.55 | I105: 6463.75 | J105: 0 | K105: 6463.75 | M105: 83903.2 | N105: 118167 | O105: -34263.8
A106: 7005 | B106: 10157 | C106: Northway School | D106: 182559.21 | E106: 0 | F106: 107766 | G106: 74793.21 | I106: -0.08 | J106: -790 | K106: 789.92 | M106: 182559.13 | N106: 106976 | O106: 75583.13
A107: 7000 | B107: 10156 | C107: Oak Lodge School | D107: 163008.26 | E107: 0 | F107: 144502 | G107: 18506.26 | I107: 2579.31 | J107: 3166 | K107: -586.69 | M107: 165587.57 | N107: 147668 | O107: 17919.57
A108: 7009 | B108: 10158 | C108: Oakleigh School | D108: 203251.04 | E108: 0 | F108: 154313 | G108: 48938.04 | I108: 1790.13 | J108: 1712 | K108: 78.13 | M108: 205041.17 | N108: 156025 | O108: 49016.17
C110: Sub Total - Special Sector | D110: =SUM(D105:D109) -> 626257.96 | E110: =SUM(E105:E109) -> 0 | F110: =SUM(F105:F109) -> 524748 | G110: =SUM(G105:G109) -> 101509.96 | I110: =SUM(I105:I109) -> 10833.11 | J110: =SUM(J105:J109) -> 4088 | K110: =SUM(K105:K109) -> 6745.11 | M110: =D110+I110 -> 637091.07 | N110: =F110+J110 -> 528836 | O110: =M110-N110 -> 108255.07
B112: 10185 | C112: Northgate School | D112: 130915.42 | E112: 0 | F112: 72845 | G112: 58070.42 | I112: 13665.38 | J112: 9182 | K112: 4483.38 | M112: 144580.8 | N112: 82027 | O112: 62553.8
B113: 10188 | C113: Pavilion Study Centre | D113: 59022.41 | E113: 0 | F113: 260791 | G113: -201768.59 | I113: 10651.25 | J113: 9072 | K113: 1579.25 | M113: 69673.66 | N113: 269863 | O113: -200189.34
C114: Sub Total - Pupil referral units | D114: 189937.83 | E114: 0 | F114: 333636 | G114: -143698.17 | H114: 0 | I114: 24316.63 | J114: 18254 | K114: 6062.63 | L114: 0 | M114: 214254.46 | N114: 351890 | O114: -137635.54
C116: Sub Total All Sectors | D116: =D110+D103+D92+D10+D114 -> 11732089.52 | E116: 0 | F116: 12134839 | G116: -402749.48 | H116: 0 | I116: 324951.9 | J116: 165366 | K116: 159585.9 | L116: 0 | M116: 12057041.42 | N116: 12300205 | O116: =O110+O103+O92+O10+O114 -> -243163.58
